bitfinex-derivatives/quotes_BTCF0:USTF0_20241231
["timestamp","ask_amount","ask_price","bid_price","bid_amount"]
[1735607997599,0.0689,92288.0,92275.0,0.0664]
[1735607997996,0.3608,92294.0,92275.0,0.0664]
[1735607998301,0.3608,92294.0,92288.0,0.054272]
[1735607998498,0.3608,92294.0,92289.0,0.0687]
[1735607998797,0.0107469,92298.0,92290.0,0.415071]
[1735607999103,0.066,92309.0,92292.0,0.05427]
[1735607999306,0.054265,92301.0,92290.0,0.3608]
[1735608000008,0.001,92298.0,92290.0,0.3608]
[1735608000994,0.05427,92293.0,92290.0,0.3608]
[1735608002103,0.05427,92293.0,92289.0,1.50056]
[1735608002309,0.05427,92293.0,92289.0,1.5]
[1735608002804,0.05427,92293.0,92282.0,0.3608]
[1735608003005,0.054272,92290.0,92276.0,0.0687]
[1735608003298,0.054278,92279.0,92277.0,1.5]
[1735608003906,0.054278,92279.0,92274.0,0.3608]
[1735608004497,0.054278,92279.0,92275.0,1.5]
[1735608004904,0.054276,92283.0,92282.0,0.002]
[1735608005391,0.001,92290.0,92282.0,0.3628]
[1735608005800,0.001,92290.0,92281.0,0.054276]
[1735608006003,0.01096285,92290.0,92283.0,1.5]
[1735608006197,0.16712182,92292.0,92283.0,1.5]
[1735608006711,0.001,92290.0,92275.0,0.001]
[1735608007009,0.05428,92276.0,92275.0,0.001]
[1735608007194,0.05428,92276.0,92275.0,1.501]
[1735608007600,0.3608,92280.0,92275.0,0.001]
[1735608007909,0.3608,92280.0,92275.0,0.05428]
[1735608008216,0.11285082,92285.0,92275.0,0.05428]
[1735608008609,0.47365082,92285.0,92276.0,0.054279]
[1735608008811,0.054273,92287.0,92276.0,0.054279]
[1735608009907,0.001,92285.0,92276.0,0.054279]
[1735608010503,0.054273,92287.0,92276.0,0.054279]
[1735608010801,0.055273,92287.0,92276.0,0.054279]
[1735608010997,0.001,92287.0,92275.0,0.002]
[1735608011312,0.001,92287.0,92282.0,0.054276]
[1735608011496,0.001,92287.0,92283.0,0.0677]
[1735608012203,0.001,92285.0,92283.0,0.0677]
[1735608012709,0.001,92285.0,92284.0,1.5]
[1735608012912,0.001,92287.0,92284.0,1.5]
[1735608013404,0.3608,92296.0,92285.0,0.190974]
[1735608013606,0.3608,92304.0,92290.0,0.3608]
[1735608013914,0.054268,92296.0,92290.0,0.3608]
[1735608015106,0.3608,92304.0,92290.0,0.3608]
[1735608015107,0.054265,92302.0,92290.0,0.3608]
[1735608015311,0.054265,92302.0,92293.0,0.054269]
[1735608016208,0.055265,92302.0,92293.0,0.054269]
[1735608017004,0.055265,92302.0,92294.0,0.054269]
[1735608018016,0.054265,92302.0,92294.0,0.054269]
[1735608018315,0.054265,92302.0,92295.0,1.5]
[1735608020400,0.3608,92304.0,92290.0,0.3608]
[1735608020603,0.054268,92297.0,92290.0,0.3608]
[1735608020809,0.3608,92304.0,92291.0,0.054271]
[1735608021011,0.054264,92303.0,92292.0,1.5]
[1735608021216,0.054264,92303.0,92292.0,1.55427]
[1735608021412,0.001,92302.0,92292.0,1.55427]
[1735608022014,0.054264,92303.0,92292.0,1.55427]
[1735608022720,0.054264,92303.0,92292.0,1.81415403]
[1735608023813,0.054264,92303.0,92292.0,1.55427]
[1735608024215,0.11285082,92302.0,92292.0,1.55427]
[1735608024522,0.054264,92303.0,92292.0,1.55427]
[1735608026314,0.3608,92304.0,92292.0,1.55427]
[1735608026315,0.054265,92302.0,92292.0,1.55427]
[1735608028110,0.054266,92300.0,92292.0,1.55427]
[1735608029218,0.054266,92299.0,92292.0,1.55427]
[1735608036532,0.054267,92298.0,92292.0,1.55427]
[1735608039128,0.054267,92298.0,92293.0,0.054269]
[1735608044943,0.054264,92303.0,92296.0,0.054267]
[1735608046830,0.3608,92304.0,92290.0,2.12124403]
[1735608047025,0.054275,92283.0,92282.0,0.04200699]
[1735608047337,0.054279,92277.0,92275.0,0.27848336]
[1735608047530,0.0687,92276.0,92275.0,0.27848336]
[1735608047733,0.0687,92276.0,92265.0,1.50056]
[1735608047931,0.054281,92273.0,92265.0,1.5]
[1735608048431,0.05428,92275.0,92265.0,1.5]
[1735608048741,0.054283,92271.0,92265.0,1.5]
[1735608049032,0.12959575,92266.0,92265.0,1.5]
[1735608050326,0.16299468,92273.0,92265.0,1.5]
[1735608050327,0.12959575,92268.0,92265.0,1.5]
[1735608050527,0.18388075,92268.0,92265.0,1.5]
[1735608050726,0.12959575,92268.0,92267.0,0.054285]
[1735608050927,0.001,92271.0,92270.0,0.054283]
[1735608051428,0.16299468,92275.0,92270.0,1.554283]
[1735608051639,0.001,92275.0,92274.0,0.415081]
[1735608052137,0.21627168,92281.0,92277.0,0.054279]
[1735608052337,0.22741606,92281.0,92278.0,1.5683]
[1735608053332,0.16199468,92281.0,92278.0,1.5683]
[1735608053536,0.19439362,92289.0,92288.0,0.054273]
[1735608053736,0.19439362,92289.0,92288.0,0.415073]
[1735608054137,0.054269,92295.0,92288.0,1.915073]
[1735608054734,0.19439362,92303.0,92288.0,1.8608]
[1735608054932,0.054264,92302.0,92288.0,1.8608]
[1735608055129,0.19439362,92303.0,92288.0,1.8608]
[1735608055130,0.19439362,92303.0,92289.0,0.054272]
[1735608055325,0.002,92295.0,92294.0,0.054269]
[1735608055530,0.22432759,92318.0,92294.0,0.054269]
[1735608055531,0.19439362,92308.0,92294.0,0.054269]
[1735608055743,0.19439362,92308.0,92307.0,0.415061]
[1735608056040,0.22432759,92322.0,92321.0,0.054253]
[1735608056427,0.054248,92330.0,92325.0,0.054251]
[1735608056628,0.054248,92330.0,92326.0,0.05425]
[1735608056834,0.054245,92335.0,92328.0,0.054249]
[1735608057538,0.3608,92345.0,92334.0,0.054245]
[1735608057539,0.054241,92343.0,92334.0,0.054245]
[1735608058642,0.0712,92344.0,92334.0,0.002]
[1735608059138,0.0712,92344.0,92339.0,0.054242]
[1735608059442,0.0685,92349.0,92339.0,0.054242]
[1735608059642,0.3608,92350.0,92340.0,0.054242]
[1735608059964,0.3608,92350.0,92341.0,0.054241]
[1735608061141,0.3618,92350.0,92341.0,0.054241]
[1735608061534,0.3638,92350.0,92341.0,0.054241]
[1735608061734,0.3648,92350.0,92341.0,0.054241]
[1735608063543,0.3628,92350.0,92341.0,0.054241]
[1735608063747,0.3648,92350.0,92341.0,0.054241]
[1735608064135,0.3628,92350.0,92341.0,0.054241]
[1735608064636,0.3648,92350.0,92341.0,0.054241]
[1735608065242,0.3628,92350.0,92341.0,0.054241]
[1735608065441,0.3648,92350.0,92341.0,0.054241]
[1735608066236,0.3628,92350.0,92341.0,0.054241]
[1735608066434,0.3648,92350.0,92341.0,0.054241]
[1735608067142,0.3628,92350.0,92341.0,0.057241]
[1735608067455,0.001,92350.0,92349.0,0.415037]
[1735608067640,0.07,92381.0,92349.0,0.7216]
[1735608067845,0.0696,92379.0,92373.0,0.054222]
[1735608068047,0.0696,92379.0,92374.0,1.5]
[1735608068343,0.08034972,92379.0,92374.0,1.5]
[1735608068535,0.08034972,92379.0,92350.0,0.0694]
[1735608068736,0.47365082,92370.0,92356.0,0.054232]
[1735608068943,0.47365082,92370.0,92358.0,0.054231]
[1735608068944,0.054225,92369.0,92358.0,0.054231]
[1735608069342,0.47365082,92370.0,92357.0,1.50056]
[1735608069644,0.054226,92368.0,92357.0,1.5]
[1735608069846,0.3608,92370.0,92361.0,0.054229]
[1735608070042,0.3608,92370.0,92362.0,0.054229]
[1735608070252,0.004,92378.0,92366.0,0.054226]
[1735608070439,0.08034972,92379.0,92360.0,0.47365082]
[1735608070750,0.004,92378.0,92360.0,0.47365082]
[1735608070941,0.004,92378.0,92376.0,0.054221]
[1735608071142,0.0696,92379.0,92373.0,0.3608]
[1735608071340,0.0696,92379.0,92378.0,0.05422]
[1735608071649,0.3608,92398.0,92375.0,0.054221]
[1735608071840,0.4858,92418.0,92399.0,0.054207]
[1735608071841,0.0665,92405.0,92399.0,0.054207]
[1735608072643,0.01062355,92402.0,92399.0,0.054207]
[1735608072853,0.0665,92405.0,92399.0,0.054207]
[1735608073154,0.01061376,92404.0,92399.0,0.054207]
[1735608073356,0.0665,92405.0,92399.0,0.054207]
[1735608073849,0.107,92400.0,92383.0,0.054216]
[1735608074041,0.054211,92394.0,92384.0,0.054216]
[1735608074447,0.3608,92396.0,92386.0,0.054215]
[1735608074643,0.054211,92394.0,92382.0,0.3608]
[1735608074844,0.054212,92392.0,92382.0,0.3608]
[1735608075144,0.054212,92391.0,92382.0,0.3608]
[1735608075344,0.008,92394.0,92384.0,0.001]
[1735608075544,0.054215,92386.0,92384.0,0.001]
[1735608075746,0.0674,92385.0,92384.0,0.001]
[1735608076443,0.4282,92385.0,92384.0,0.001]
[1735608077048,0.4322,92385.0,92370.0,0.054224]
[1735608077349,0.4322,92385.0,92382.0,0.001]
[1735608077544,0.054216,92384.0,92382.0,0.001]
[1735608077947,0.4402,92385.0,92384.0,0.001]
[1735608078139,0.4402,92385.0,92365.0,0.3608]
[1735608078345,0.3608,92371.0,92346.0,0.3608]
[1735608078543,0.3608,92353.0,92346.0,0.3608]
[1735608078745,0.054236,92351.0,92346.0,1.8608]
[1735608078958,0.066,92352.0,92346.0,1.915038]
[1735608079142,0.05423,92362.0,92351.0,0.054235]
[1735608079551,0.11285082,92361.0,92346.0,1.8614]
[1735608079754,0.054235,92352.0,92346.0,1.8618]
[1735608080351,0.0668,92354.0,92346.0,1.501]
[1735608080552,0.054237,92349.0,92346.0,1.5]
[1735608080854,0.054238,92348.0,92346.0,1.5]
[1735608081442,0.054234,92353.0,92346.0,0.003]
[1735608081649,0.3608,92347.0,92330.0,0.3608]
[1735608081847,0.054243,92339.0,92330.0,0.3608]
[1735608082352,0.3608,92347.0,92330.0,0.3608]
[1735608082652,0.3608,92347.0,92346.0,1.5]
[1735608082951,0.3608,92355.0,92346.0,1.5]
[1735608083256,0.3608,92365.0,92346.0,1.554238]
[1735608083257,0.001,92347.0,92346.0,1.554238]
[1735608083557,0.001,92347.0,92346.0,1.915038]
[1735608083853,0.48572,92378.0,92346.0,1.915038]
[1735608083854,0.054211,92393.0,92381.0,0.054218]
[1735608084045,0.3608,92398.0,92373.0,0.415022]
[1735608084046,0.054216,92384.0,92373.0,0.415022]
[1735608084249,0.054216,92384.0,92376.0,0.05422]
[1735608084449,0.1691537,92390.0,92376.0,0.3608]
[1735608084654,0.1691537,92390.0,92380.0,0.054218]
[1735608084854,0.415015,92387.0,92380.0,0.054218]
[1735608085052,0.415015,92387.0,92376.0,0.3608]
[1735608085356,0.001,92384.0,92381.0,0.054218]
[1735608085752,0.415015,92387.0,92381.0,0.054218]
[1735608085959,0.419015,92387.0,92376.0,0.3608]
[1735608086657,0.419015,92387.0,92377.0,0.05422]
[1735608086957,0.421015,92387.0,92377.0,0.05422]
[1735608087557,0.417015,92387.0,92377.0,0.05422]
[1735608087748,0.004,92384.0,92377.0,0.05422]
[1735608087949,0.055215,92387.0,92377.0,0.05422]
[1735608088151,0.055215,92387.0,92378.0,1.5]
[1735608088350,0.057215,92387.0,92378.0,1.5]
[1735608089256,0.057215,92387.0,92379.0,0.1938243]
[1735608089560,0.002,92384.0,92379.0,0.1938243]
[1735608090653,0.002,92384.0,92377.0,0.05422]
[1735608090856,0.002,92384.0,92376.0,0.3608]
[1735608090857,0.002,92384.0,92378.0,0.054219]
[1735608091056,0.1,92400.0,92382.0,0.3608]
[1735608091363,0.1,92400.0,92399.0,0.3608]
[1735608091962,0.3608,92418.0,92415.0,0.054197]
[1735608092458,0.00088001,92426.0,92410.0,0.3608]
[1735608092658,0.19326494,92429.0,92418.0,0.3608]
[1735608092858,0.19238493,92429.0,92418.0,0.3608]
[1735608093060,0.19238493,92429.0,92428.0,0.3608]
[1735608093260,0.414982,92442.0,92428.0,0.3608]
[1735608093261,0.414982,92442.0,92428.0,0.41499]
[1735608093462,0.414982,92442.0,92428.0,0.3608]
[1735608093650,0.3608,92442.0,92434.0,0.054187]
[1735608093850,0.3608,92442.0,92429.0,1.5]
[1735608093851,0.054177,92451.0,92436.0,0.414985]
[1735608094663,0.054183,92441.0,92436.0,0.3608]
[1735608095153,0.054178,92449.0,92436.0,0.3608]
[1735608095357,0.37164048,92451.0,92436.0,0.3608]
[1735608095558,0.001,92451.0,92446.0,0.05418]
[1735608095763,0.001,92451.0,92448.0,0.054179]
[1735608095968,0.001,92451.0,92444.0,0.3608]
[1735608096166,0.001,92451.0,92434.0,0.054187]
[1735608096167,0.001,92441.0,92434.0,0.054187]
[1735608096359,0.001,92441.0,92436.0,0.3608]
[1735608096558,0.001,92441.0,92438.0,0.054184]
[1735608097361,0.001,92441.0,92436.0,0.3608]
[1735608097970,0.001,92441.0,92439.0,0.054184]
[1735608098168,0.01,92451.0,92446.0,0.001]
[1735608098471,0.01,92451.0,92447.0,0.3608]
[1735608098664,0.006,92451.0,92447.0,0.3608]
[1735608098866,0.054176,92453.0,92447.0,0.3608]
[1735608099176,0.1691537,92460.0,92437.0,1.5]
[1735608099377,0.3608,92461.0,92449.0,0.054178]
[1735608099378,0.414971,92461.0,92449.0,0.054178]
[1735608099675,0.01,92451.0,92449.0,0.054178]
[1735608100174,0.004,92451.0,92449.0,0.054178]
[1735608100374,0.007,92453.0,92449.0,0.054178]
[1735608100565,0.007,92453.0,92447.0,0.3618]
[1735608100963,0.007,92453.0,92447.0,0.415979]
[1735608101676,0.054174,92457.0,92447.0,0.414979]
[1735608101865,0.054174,92457.0,92449.0,0.001]
[1735608102066,0.004,92451.0,92449.0,0.001]
[1735608102372,0.004,92451.0,92447.0,0.3618]
[1735608102771,0.007,92453.0,92447.0,0.3618]
[1735608102973,0.054175,92455.0,92449.0,0.001]
[1735608103469,0.012,92457.0,92449.0,0.001]
[1735608103678,0.008,92457.0,92449.0,0.001]
[1735608103975,0.054177,92450.0,92449.0,0.001]
[1735608104775,0.054177,92450.0,92447.0,0.3638]
[1735608104966,0.054179,92448.0,92447.0,0.3638]
[1735608105275,0.054179,92448.0,92447.0,0.3628]
[1735608105863,0.054179,92448.0,92438.0,1.50056]
[1735608106069,0.054179,92448.0,92447.0,0.002]
[1735608108270,0.3608,92454.0,92447.0,0.001]
[1735608108571,0.3608,92465.0,92449.0,0.3608]
[1735608108770,0.054171,92462.0,92449.0,0.414978]
[1735608108974,0.36958254,92465.0,92449.0,0.414978]
[1735608109168,0.054171,92461.0,92449.0,0.414978]
[1735608109364,0.054171,92461.0,92450.0,1.5]
[1735608109675,0.054171,92461.0,92450.0,1.554177]
[1735608110072,0.054175,92454.0,92450.0,1.5]
[1735608110269,0.054177,92450.0,92449.0,0.3608]
[1735608110581,0.11260307,92460.0,92447.0,0.001]
[1735608110582,0.054178,92449.0,92447.0,0.001]
[1735608111675,0.054182,92444.0,92441.0,1.50056]
[1735608111976,0.054182,92444.0,92441.0,1.5]
[1735608112371,0.054182,92442.0,92441.0,1.5]
[1735608112971,0.054182,92442.0,92441.0,0.004]
[1735608113573,0.054182,92442.0,92441.0,0.005]
[1735608114486,0.054182,92442.0,92441.0,0.001]
[1735608114685,0.054182,92442.0,92441.0,0.005]
[1735608115286,0.054187,92434.0,92427.0,1.5]
[1735608115590,0.054189,92431.0,92427.0,1.5]
[1735608116489,0.054189,92431.0,92427.0,1.506]
[1735608116787,0.054189,92431.0,92427.0,1.507]
[1735608118091,0.054189,92431.0,92427.0,1.505]
[1735608118586,0.00855306,92442.0,92427.0,1.506]
[1735608118783,0.3608,92443.0,92427.0,1.506]
[1735608118987,0.054187,92434.0,92427.0,1.506]
[1735608119188,0.054187,92434.0,92427.0,1.5]
[1735608119389,0.054187,92434.0,92427.0,1.505]
[1735608120010,0.054187,92434.0,92427.0,1.504]
[1735608120293,0.05419,92429.0,92427.0,1.506]
[1735608120882,0.05419,92429.0,92427.0,1.502]
[1735608121183,0.05419,92429.0,92427.0,1.506]
[1735608121379,0.36970009,92443.0,92427.0,0.006]
[1735608121589,0.36970009,92443.0,92436.0,0.3608]
[1735608121886,0.054181,92444.0,92438.0,1.5]
[1735608122280,0.054182,92443.0,92440.0,0.25949921]
[1735608122892,0.055182,92443.0,92440.0,0.25949921]
[1735608123692,0.055182,92443.0,92438.0,1.50056]
[1735608123988,0.055182,92443.0,92438.0,1.5]
[1735608124589,0.054183,92440.0,92438.0,1.5]
[1735608125383,0.054183,92440.0,92438.0,1.506]
[1735608125978,0.054183,92440.0,92438.0,1.502]
[1735608126182,0.054183,92440.0,92438.0,1.506]
[1735608127481,0.3608,92439.0,92438.0,0.006]
[1735608127679,0.4328,92439.0,92438.0,0.003]
[1735608127884,0.4328,92439.0,92438.0,0.001]
[1735608128205,0.4328,92439.0,92438.0,1.5]
[1735608128490,0.05419,92428.0,92417.0,0.054197]
[1735608128893,0.05419,92428.0,92422.0,1.5]
[1735608131292,0.05519,92428.0,92422.0,1.508]
[1735608131493,0.05519,92428.0,92427.0,0.3608]
[1735608131799,0.19417233,92438.0,92427.0,0.3608]
[1735608131990,0.19417233,92438.0,92437.0,0.414985]
[1735608132190,0.00877548,92448.0,92437.0,0.414985]
[1735608132191,0.19417233,92442.0,92437.0,1.8608]
[1735608132498,0.19417233,92442.0,92439.0,0.054184]
[1735608133889,0.054179,92447.0,92439.0,0.054184]
[1735608133890,0.19417233,92453.0,92439.0,0.054184]
[1735608134297,0.054179,92447.0,92439.0,0.054184]
[1735608134487,0.19417233,92453.0,92439.0,0.054184]
[1735608134689,0.19417233,92453.0,92439.0,0.055184]
[1735608134891,0.19417233,92449.0,92439.0,0.055184]
[1735608135086,0.054183,92441.0,92439.0,0.001]
[1735608135591,0.1403,92440.0,92439.0,0.001]
[1735608135798,0.054184,92439.0,92437.0,0.3608]
[1735608136697,0.054187,92434.0,92433.0,0.25969327]
[1735608136899,0.054189,92430.0,92429.0,0.25969327]
[1735608138099,0.055189,92430.0,92429.0,0.19972076]
[1735608138704,0.054189,92430.0,92429.0,0.19572076]
[1735608139505,0.054189,92430.0,92429.0,0.001]
[1735608139889,0.06276596,92430.0,92429.0,0.001]
[1735608140488,0.054193,92424.0,92423.0,0.00056]
[1735608140704,0.054196,92419.0,92418.0,0.19472076]
[1735608141008,0.054196,92419.0,92418.0,1.69472076]
[1735608141395,0.121696,92419.0,92418.0,0.19472076]
[1735608141599,0.054201,92409.0,92408.0,0.19472076]
[1735608142890,0.055201,92409.0,92408.0,0.20072076]
[1735608143096,0.055201,92409.0,92408.0,0.20272076]
[1735608143296,0.055201,92409.0,92408.0,0.008]
[1735608147704,0.055201,92409.0,92408.0,0.007]
[1735608147905,0.054201,92409.0,92408.0,0.004]
[1735608148106,0.06294967,92409.0,92408.0,0.004]
[1735608148313,0.25668411,92409.0,92395.0,1.5]
[1735608148511,0.054209,92396.0,92395.0,1.5]
[1735608150719,0.055209,92396.0,92395.0,1.5]
[1735608150912,0.056209,92396.0,92395.0,1.5]
[1735608151107,0.055209,92396.0,92395.0,1.5]
[1735608151312,0.056209,92396.0,92395.0,1.5]
[1735608151616,0.055209,92396.0,92395.0,1.5]
[1735608151817,0.056209,92396.0,92395.0,1.5]
[1735608153722,0.002,92396.0,92395.0,1.5]
[1735608153907,0.002,92396.0,92395.0,1.91501]
[1735608154103,0.24792544,92427.0,92409.0,0.054201]
[1735608154324,0.24792544,92427.0,92395.0,2.1608]
[1735608154325,0.19373444,92427.0,92420.0,0.3608]
[1735608154503,0.48556,92447.0,92420.0,0.6608]
[1735608154712,0.00096001,92442.0,92439.0,0.054184]
[1735608154910,0.054175,92454.0,92441.0,0.3608]
[1735608155113,0.054179,92448.0,92441.0,0.3608]
[1735608155417,0.05418,92447.0,92441.0,0.3608]
[1735608155915,0.05718,92447.0,92441.0,0.3608]
[1735608156919,0.054182,92443.0,92441.0,0.3608]
[1735608157214,0.054186,92435.0,92434.0,1.5]
[1735608157420,0.054186,92435.0,92423.0,0.3608]
[1735608157615,0.054187,92434.0,92423.0,0.3608]
[1735608158126,0.054187,92434.0,92424.0,1.5]
[1735608158623,0.05419,92429.0,92424.0,1.5]
[1735608158818,0.054191,92427.0,92423.0,0.3638]
[1735608159312,0.054191,92427.0,92423.0,0.3608]
[1735608159517,0.054191,92427.0,92424.0,0.002]
[1735608159917,0.054192,92425.0,92424.0,0.002]
[1735608161115,0.054192,92425.0,92423.0,0.3658]
[1735608161311,0.054192,92425.0,92423.0,0.006]
[1735608161515,0.054192,92425.0,92423.0,0.001]
[1735608161516,0.0706,92424.0,92423.0,0.001]
[1735608161715,0.054192,92425.0,92423.0,0.001]
[1735608161917,0.06315319,92425.0,92423.0,0.001]
[1735608162115,0.054194,92423.0,92410.0,0.11258239]
[1735608162313,0.054194,92423.0,92412.0,0.3608]
[1735608162715,0.004,92424.0,92412.0,0.3608]
[1735608162913,0.004,92424.0,92407.0,1.50056]
[1735608163115,0.004,92424.0,92407.0,1.5]
[1735608164020,0.3608,92422.0,92407.0,1.5]
[1735608164220,0.054199,92414.0,92407.0,1.5]
[1735608164515,0.3608,92422.0,92407.0,1.5]
[1735608164516,0.0542,92413.0,92407.0,1.5]
[1735608164721,0.3608,92422.0,92407.0,1.5]
[1735608164912,0.3608,92414.0,92407.0,1.5]
[1735608165113,0.23692957,92414.0,92407.0,1.5]
[1735608165432,0.054204,92405.0,92391.0,0.3608]
[1735608165814,0.054204,92405.0,92396.0,1.5]
[1735608166525,0.054208,92399.0,92396.0,1.5]
[1735608167818,0.054209,92397.0,92396.0,1.5]
[1735608168018,0.054209,92397.0,92396.0,1.501]
[1735608168219,0.054209,92397.0,92396.0,1.504]
[1735608168817,0.054209,92397.0,92396.0,1.503]
[1735608169023,0.054209,92397.0,92396.0,1.504]
[1735608170726,0.054209,92397.0,92396.0,1.503]
[1735608170917,0.054209,92397.0,92396.0,1.504]
[1735608171119,0.054209,92397.0,92396.0,1.502]
[1735608171516,0.054209,92397.0,92396.0,1.501]
[1735608171830,0.054209,92397.0,92396.0,1.502]
[1735608172428,0.054209,92397.0,92396.0,1.501]
[1735608173126,0.054209,92397.0,92396.0,1.502]
[1735608175719,0.054209,92397.0,92396.0,0.002]
[1735608175920,0.054211,92392.0,92391.0,0.3608]
[1735608176120,0.054211,92392.0,92391.0,1.8608]
[1735608176520,0.054211,92392.0,92391.0,0.3608]
[1735608176826,0.054216,92384.0,92383.0,0.19472076]
[1735608177325,0.054216,92384.0,92373.0,0.62049327]
[1735608177326,0.054219,92379.0,92373.0,0.3608]
[1735608177519,0.054219,92379.0,92374.0,1.5]
[1735608178832,0.054219,92379.0,92374.0,1.504]
[1735608179222,0.054219,92379.0,92374.0,1.505]
[1735608179723,0.05422,92378.0,92374.0,1.505]
[1735608179923,0.0094696,92392.0,92377.0,0.3608]
[1735608180126,0.0715,92415.0,92391.0,0.3608]
[1735608180326,0.0542,92412.0,92400.0,0.47338239]
[1735608180625,0.126799,92414.0,92400.0,0.415007]
[1735608180923,0.126799,92414.0,92391.0,0.3608]
[1735608180924,0.054203,92407.0,92405.0,1.5]
[1735608181429,0.11258239,92410.0,92391.0,0.3608]
[1735608181818,0.054206,92401.0,92400.0,0.004]
[1735608182227,0.054206,92401.0,92400.0,0.001]
[1735608182624,0.054209,92397.0,92391.0,0.3618]
[1735608183330,0.0715,92404.0,92391.0,0.3618]
[1735608183331,0.05421,92395.0,92391.0,0.3618]
[1735608184025,0.001,92401.0,92391.0,0.3618]
[1735608184226,0.054211,92392.0,92391.0,0.3608]
[1735608184627,0.054208,92398.0,92391.0,0.3628]
[1735608184829,0.05421,92395.0,92391.0,0.3628]
[1735608185034,0.05421,92395.0,92391.0,0.3638]
[1735608185234,0.05421,92395.0,92391.0,0.3618]
[1735608185932,0.0715,92404.0,92391.0,0.3618]
[1735608186135,0.054211,92393.0,92391.0,0.3618]
[1735608187136,0.054211,92393.0,92391.0,0.3608]
[1735608187636,0.0754,92392.0,92391.0,0.3628]
[1735608188228,0.0754,92392.0,92391.0,0.3608]
[1735608188429,0.0754,92392.0,92391.0,0.3638]
[1735608188934,0.054208,92398.0,92391.0,0.3608]
[1735608189131,0.540585,92437.0,92392.0,0.3608]
[1735608189132,0.3608,92433.0,92392.0,0.3608]
[1735608189441,0.00928352,92416.0,92408.0,0.415002]
[1735608189735,0.3608,92424.0,92408.0,0.3608]
[1735608190439,0.054201,92411.0,92408.0,0.3608]
[1735608190938,0.3608,92424.0,92408.0,0.3608]
[1735608191335,0.11258239,92420.0,92408.0,0.3608]
[1735608191637,0.003,92411.0,92408.0,0.001]
[1735608192030,0.003,92411.0,92400.0,0.47338239]
[1735608192223,0.003,92411.0,92408.0,0.001]
[1735608192427,0.054199,92414.0,92408.0,0.001]
[1735608192636,0.054194,92422.0,92408.0,0.001]
[1735608192833,0.054194,92422.0,92413.0,0.3608]
[1735608193428,0.08587895,92428.0,92421.0,0.3608]
[1735608193624,0.054185,92438.0,92421.0,0.414994]
[1735608193934,0.054188,92432.0,92421.0,0.3608]
[1735608194131,0.05419,92430.0,92414.0,0.1515]
[1735608194336,0.05419,92430.0,92421.0,0.3608]
[1735608194631,0.05419,92430.0,92429.0,0.3608]
[1735608195337,0.05419,92430.0,92429.0,1.8608]
[1735608195643,0.05419,92430.0,92429.0,1.5]
[1735608196534,0.054191,92427.0,92421.0,0.3648]
[1735608196735,0.054191,92427.0,92421.0,0.3608]
[1735608196934,0.054191,92427.0,92422.0,1.5]
[1735608199034,0.0765,92429.0,92422.0,1.5]
[1735608199334,0.054192,92425.0,92422.0,1.503]
[1735608199535,0.0732,92424.0,92422.0,1.503]
[1735608200345,0.054193,92423.0,92422.0,1.503]
[1735608200638,0.054199,92414.0,92413.0,0.17366216]
[1735608201031,0.054199,92414.0,92410.0,0.3608]
[1735608201032,0.0542,92411.0,92410.0,0.3608]
[1735608201544,0.054208,92398.0,92397.0,0.25969327]
[1735608202240,0.054208,92398.0,92389.0,1.8218016]
[1735608202241,0.054209,92396.0,92389.0,1.5006]
[1735608202442,0.054209,92396.0,92389.0,1.5]
[1735608203047,0.0741,92397.0,92389.0,1.5]
[1735608203349,0.054213,92390.0,92389.0,1.5]
[1735608203645,0.054213,92390.0,92389.0,1.503]
[1735608204937,0.054213,92390.0,92389.0,1.501]
[1735608205434,0.415013,92390.0,92389.0,0.001]
[1735608205744,0.415013,92390.0,92368.0,0.3608]
[1735608205745,0.054222,92375.0,92368.0,0.3608]
[1735608206051,0.0768,92374.0,92368.0,0.3608]
[1735608206437,0.131022,92374.0,92368.0,0.3608]
[1735608206833,0.0768,92374.0,92368.0,0.3608]
[1735608207045,0.054225,92370.0,92368.0,0.3608]
[1735608208145,0.054225,92370.0,92368.0,0.3658]
[1735608208341,0.055225,92370.0,92368.0,0.3658]
[1735608208739,0.055225,92370.0,92368.0,0.3608]
[1735608209049,0.054225,92370.0,92368.0,0.3628]
[1735608209241,0.054225,92370.0,92368.0,0.002]
[1735608209447,0.054225,92370.0,92369.0,0.3608]
[1735608210744,0.054225,92370.0,92369.0,1.8608]
[1735608211951,0.054225,92370.0,92368.0,0.002]
[1735608212141,0.05423,92361.0,92360.0,0.3608]
[1735608212538,0.05423,92361.0,92360.0,1.8608]
[1735608213139,0.08649939,92374.0,92360.0,1.8608]
[1735608213341,0.08649939,92374.0,92360.0,1.8618]
[1735608213342,0.054226,92368.0,92360.0,1.8618]
[1735608213949,0.054228,92365.0,92360.0,1.8618]
[1735608214748,0.054225,92369.0,92360.0,1.8618]
[1735608214952,0.054226,92367.0,92360.0,1.8618]
[1735608215351,0.054226,92367.0,92360.0,1.8608]
[1735608215551,0.054226,92367.0,92360.0,1.8618]
[1735608215940,0.11258239,92370.0,92360.0,1.8618]
[1735608216148,0.054229,92362.0,92360.0,1.8608]